Cogmind - Beta 10.2 @@@ ROGUE MODE // 2021.10.04 @ 01:30:50 // Winter2019/RPGLIKE Player: MN-W4D Result: Core destroyed Performance ------------- Evolutions (1) 500 Regions Visited (6) 1200 Robots Destroyed (47) 235 Value Destroyed (1116) 1116 Prototype IDs (25) 500 Alien Tech Used (0) 0 Bonus (391) 391 TOTAL SCORE: 3942 Bonus ------- High Alert Combat Kills 91 Aligned with FarCom 300 Cogmind --------- Core Integrity 0/1000 Matter 211/300 Energy 625/625 System Corruption 11% Temperature Cool (522) Movement Walking (180) Ox2 Location -8/Mines Parts ------- > --- POWER (2) -------- Ion Engine Deuterium Engine > --- PROPULSION (2) --- Flexi-carbon Leg Flexi-carbon Leg > --- UTILITY (2) ------ Targeting Computer Reactive Plating > --- WEAPON (2) ------- Latent Energy Streamer Bore Cannon > --- INVENTORY (1) ---- Mini Grenade Launcher Peak State ------------ > --- POWER ------------ Ion Engine Deuterium Engine > --- PROPULSION ------- Flexi-carbon Leg Flexi-carbon Leg > --- UTILITY ---------- Targeting Computer Reactive Plating > --- WEAPON ----------- Latent Energy Streamer Bore Cannon > --- INVENTORY -------- Mini Grenade Launcher [Rating: 33] Favorites ----------- Power Ion Engine Engine Ion Engine Propulsion Flexi-carbon Leg Leg Flexi-carbon Leg Utility Targeting Computer Device Heat Sink Processor Targeting Computer Protection Light Armor Plating Weapon Assault Rifle Energy Cannon Latent Energy Streamer Ballistic Gun Assault Rifle Ballistic Cannon Bore Cannon Launcher Mini Grenade Launcher Build | -11 -10 -10 -9 -9 -9 -8 ------- Run | Scr Mat Min Mat Min Exi Min Slots Evolved 4 | 2 . . . . . 2 Power 1 | . . . . . . 1 Propulsion 1 | 1 . . . . . . Utility 1 | . . . . . . 1 Weapon 1 | 1 . . . . . . Parts Attached 21 | 6 1 3 2 2 2 5 Power 3 | 1 . . . . . 2 Engine 3 | 1 . . . . . 2 Core . | . . . . . . . Reactor . | . . . . . . . Propulsion 4 | 2 . 2 . . . . Treads . | . . . . . . . Leg 4 | 2 . 2 . . . . Wheel . | . . . . . . . Hover . | . . . . . . . Flight . | . . . . . . . Utility 5 | 1 1 . 1 1 . 1 Device 2 | 1 . . 1 . . . Storage . | . . . . . . . Processor 1 | . . . . 1 . . Hackware . | . . . . . . . Protection 2 | . 1 . . . . 1 Artifact . | . . . . . . . Weapon 9 | 2 . 1 1 1 2 2 Energy Gun . | . . . . . . . Energy Cannon 2 | . . . . . 1 1 Ballistic Gun 2 | 2 . . . . . . Ballistic Cannon 2 | . . 1 . . . 1 Launcher 3 | . . . 1 1 1 . Special Weapon . | . . . . . . . Impact Weapon . | . . . . . . . Slashing Weapon . | . . . . . . . Piercing Weapon . | . . . . . . . Special Melee Weapon . | . . . . . . . Unidentified Prototypes . | . . . . . . . Parts Lost 1 | . . 1 . . . . Power . | . . . . . . . Propulsion . | . . . . . . . Utility 1 | . . 1 . . . . Weapon . | . . . . . . . Highest Loss Streak 1 | . . 1 . . . . Average Slot Usage (%) 96 | . 100 98 88 100 99 90 Engine 17 | . 16 16 16 16 16 24 Leg 31 | . 33 33 33 33 33 25 Device 2 | . 1 . 5 11 . . Processor 6 | . . . . 4 16 12 Protection 5 | . 14 14 . . . 1 Energy Cannon 2 | . . . . . 3 12 Ballistic Gun 11 | . 33 24 9 . . . Ballistic Cannon 10 | . . 8 16 16 12 10 Launcher 6 | . . . 6 16 15 2 Naked Turns . | . . . . . . . Heaviest Build 43 | 10 12 19 18 18 16 43 Greatest Support 40 | 20 20 40 40 40 40 40 Greatest Overweight (x) 2 | 2 . . . . . 1 Average Overweight (x) . | . . . . . . . Largest Inventory Capacity 1 | 1 1 1 1 1 1 1 Average Capacity . | . 1 1 1 1 1 1 Most Carried 1 | . 1 1 1 1 1 1 Average Carried . | . . . 1 . . 1 Final Capacity 1 | 1 1 1 1 1 1 1 Final Carried 1 | . 1 1 1 . 1 1 Class Distribution -------------------- 88% | Mutant 11% | Scavenger-Mutant Dominant Class ---------------- Mutant | -10/Materials Mutant | -10/Mines Mutant | -9/Materials Scavenger-Mutant | -9/Mines Mutant | -9/Exiles Mutant | -8/Mines Resources | -11 -10 -10 -9 -9 -9 -8 ----------- Run | Scr Mat Min Mat Min Exi Min Matter Collected 1114 | 272 262 71 328 72 . 109 Remotely . | . . . . . . . Salvage Created 1041 | 33 246 14 515 25 . 208 Parts 83 | 7 15 1 44 4 . 12 Haulers Intercepted 2 | . 1 . 1 . . . Recyclers Shooed 2 | . . 2 . . . . Parts Field Recycled . | . . . . . . . Retrieved Matter . | . . . . . . . Parts Self-Destructed . | . . . . . . . Prevented . | . . . . . . . Kills | -11 -10 -10 -9 -9 -9 -8 ------- Run | Scr Mat Min Mat Min Exi Min Combat Hostiles Destroyed 34 | . 6 2 20 . . 6 Guns 8 | . 6 2 . . . . Cannons 11 | . . . 10 . . 1 AOE 15 | . . . 10 . . 5 Classes Destroyed 13 | 1 2 1 8 . . 1 Worker 3 | . . . 3 . . . Builder 3 | . . . 2 1 . . Tunneler 3 | 2 . . 1 . . . Hauler 2 | . 1 . 1 . . . Recycler 1 | . . . 1 . . . Watcher 1 | . . . 1 . . . Swarmer 10 | . . . 7 . . 3 Grunt 17 | . 6 . 9 . . 2 Brawler 1 | . . . 1 . . . Duelist 1 | . . . . . . 1 Protector 1 | . . . 1 . . . Sentry 2 | . . . 2 . . . Demolisher 2 | . . 2 . . . . Best Kill Streak 9 | 2 3 2 9 1 . 3 Combat Bots Only 5 | . 3 2 5 . . 3 Max Kills in Single Turn 4 | 1 2 1 4 1 . 3 Gunslinging 1 | . 1 . . . . . Exploded 3 | . . . 3 . . 3 Melee . | . . . . . . . Uniques/NPCs Destroyed . | . . . . . . . Combat | -11 -10 -10 -9 -9 -9 -8 -------- Run | Scr Mat Min Mat Min Exi Min Damage Taken 2435 | . 621 334 863 . . 617 Core 1933 | . 455 246 694 . . 538 Absorbed by Shields . | . . . . . . . Redirected to Core 1353 | . 364 211 551 . . 227 Core Remaining (%) 75 | 100 . 50 . . . . Volleys Fired 120 | 2 43 4 46 1 . 24 Largest 2 | 2 2 2 2 1 . 1 Hottest 77 | 40 40 77 77 57 . 60 Shots Fired 172 | 4 86 8 48 1 . 25 Gun 96 | 4 86 4 2 . . . Cannon 65 | . . 4 37 1 . 23 Launcher 11 | . . . 9 . . 2 Special . | . . . . . . . Kinetic 151 | 4 86 8 39 1 . 13 Thermal . | . . . . . . . Explosive 11 | . . . 9 . . 2 Electromagnetic 10 | . . . . . . 10 Robot Hit Streak 28 | 2 18 1 10 11 . 28 Robot Miss Streak 4 | 1 2 2 4 . . . Penetration Max 1 | . . . 1 . . . Secondary Targets 1 | . 1 . . . . . Max Gunslinging Chain 1 | . 1 . . . . . Shots Hit Robots 109 | 2 60 2 27 1 . 17 Core Hits 87 | 2 16 3 40 1 . 25 Critical Hits 22 | . . 1 19 1 . 1 Critical Kills 9 | . . . 8 1 . . Critical Parts Destroyed 12 | . . 1 10 . . 1 Melee Attacks . | . . . . . . . Impact . | . . . . . . . Slashing . | . . . . . . . Piercing . | . . . . . . . Sneak Attacks . | . . . . . . . Combat Hostiles . | . . . . . . . Follow-up Attacks . | . . . . . . . Damage Inflicted 3312 | 37 729 51 1730 28 . 737 Guns 812 | 37 729 34 12 . . . Cannons 958 | . . 10 712 28 . 208 Explosions 1535 | . . . 1006 . . 529 Melee . | . . . . . . . Ramming 7 | . . 7 . . . . Kinetic 1714 | 37 729 44 724 28 . 152 Thermal . | . . . . . . . Explosive 1205 | . . . 1006 . . 199 Electromagnetic 386 | . . . . . . 386 Impact . | . . . . . . . Slashing . | . . . . . . . Piercing . | . . . . . . . Highest Corruption 11 | . . . . . . 11 Average Corruption 5 | . . . . . . 5 Corruption Purged . | . . . . . . . Effects 11 | . . . . . . 11 Message Errors 2 | . . . . . . 2 Matter Fused 2 | . . . . . . 2 Heat Flow Errors 2 | . . . . . . 2 Energy Discharges 2 | . . . . . . 2 Misfires 1 | . . . . . . 1 Targeting Errors 2 | . . . . . . 2 Overload Shots . | . . . . . . . Overflow Damage 22 | . . . 22 . . . Projectiles 5 | . . . 5 . . . Explosions 17 | . . . 17 . . . Melee . | . . . . . . . Knockbacks 12 | . . 1 8 . . 3 Impact . | . . . . . . . Kinetic 11 | . . 1 7 . . 3 Secondary 1 | . . . 1 . . . Self-Inflicted Damage 115 | . . . 80 . . 35 Shots 6 | . . . 4 . . 2 Rammed . | . . . . . . . Targets Rammed 1 | . . 1 . . . . Kicked 1 | . . 1 . . . . Crushed . | . . . . . . . Highest Temperature 550 | . 59 84 100 16 . 550 Average Temperature 72 | . 23 45 32 12 . 142 Received Heat Transfer 552 | . 345 . 180 . . 27 Effects 4 | . . . . . . 4 Shutdowns 2 | . . . . . . 2 Short Circuit 1 | . . . . . . 1 Damage (core) 1 | . . . . . . 1 Siege Activations . | . . . . . . . Robots Corrupted . | . . . . . . . Combat Hostiles . | . . . . . . . Parts Fried . | . . . . . . . Impact Corruptions . | . . . . . . . Robots Melted . | . . . . . . . Combat Hostiles . | . . . . . . . Parts Melted . | . . . . . . . Heat Transferred . | . . . . . . . Parts Sabotaged . | . . . . . . . Parts Stolen . | . . . . . . . Parts Stripped . | . . . . . . . Power Chain Reactions . | . . . . . . . Missiles Intercepted . | . . . . . . . Latent Energy Used 305 | . . . . . . 305 LE Corruption 11 | . . . . . . 11 Alert | -11 -10 -10 -9 -9 -9 -8 ------- Run | Scr Mat Min Mat Min Exi Min Peak Influence 715 | 10 227 86 715 252 . 192 Initial 247 | . 6 16 33 247 . . Average 157 | 1 107 31 294 248 . 140 Maximum Alert Level 3 | . 1 . 3 1 . . Low Security (%) 71 | 100 79 100 46 . . 100 Level 1 20 | . 20 . 17 100 . . Level 2 8 | . . . 33 . . . Level 3 . | . . . 2 . . . Level 4 . | . . . . . . . Level 5 . | . . . . . . . High Security . | . . . . . . . Max Security . | . . . . . . . Squads Dispatched 6 | . 3 . 3 . . . Investigation 1 | . 1 . . . . . Extermination . | . . . . . . . Reinforcement 4 | . 2 . 2 . . . Assault 1 | . . . 1 . . . Garrison . | . . . . . . . Intercept . | . . . . . . . Construction Impeded 1 | . . . 1 . . . Haulers Reinforced . | . . . . . . . Stealth | -11 -10 -10 -9 -9 -9 -8 --------- Run | Scr Mat Min Mat Min Exi Min Distress Signals 2 | . . . 2 . . . Communications Jammed . | . . . . . . . Distress Signals . | . . . . . . . Times Spotted 78 | . 14 15 42 . . 7 Peak Tracking Total 9 | . 4 9 8 . . 3 Tactical Retreats 12 | . 2 2 8 . . . Traps | -11 -10 -10 -9 -9 -9 -8 ------- Run | Scr Mat Min Mat Min Exi Min Traps Triggered 3 | . . . 3 . . . Indirectly . | . . . . . . . Trap Hack Attempts . | . . . . . . . Triggered . | . . . . . . . Disarmed . | . . . . . . . Reprogrammed . | . . . . . . . Reused 1 | . . 1 . . . . Traps Extracted . | . . . . . . . Installed 1 | . . 1 . . . . Triggered . | . . . . . . . Exploded 1 | . . . . . 1 . Machines | -11 -10 -10 -9 -9 -9 -8 ---------- Run | Scr Mat Min Mat Min Exi Min Machines Disabled 6 | . . . 5 . . 1 Max in Single Turn 2 | . . . 2 . . 1 Machines Sabotaged . | . . . . . . . Garrisons Compromised . | . . . . . . . Overloaded Fab Kills . | . . . . . . . Fab Network Shutdowns . | . . . . . . . Hacking | -11 -10 -10 -9 -9 -9 -8 --------- Run | Scr Mat Min Mat Min Exi Min Machines Accessed 7 | . 2 . 3 . 2 . Terminals 5 | . 2 . 3 . . . Fabricators . | . . . . . . . Repair Stations . | . . . . . . . Recycling Units . | . . . . . . . Scanalyzers . | . . . . . . . Garrison Access . | . . . . . . . Total Hacks 17 | . 4 . 8 . 5 . Successful 12 | . 1 . 6 . 5 . Failed 5 | . 3 . 2 . . . Catastrophic . | . . . . . . . Database Lockouts . | . . . . . . . Manual 9 | . 4 . 4 . 1 . Terminals 12 | . 4 . 8 . . . Fabricators . | . . . . . . . Repair Stations . | . . . . . . . Recycling Units . | . . . . . . . Scanalyzers . | . . . . . . . Garrison Access . | . . . . . . . Terminal Hacks 8 | . . . 3 . 5 . Record 4 | . . . . . 4 . Robot Analysis 1 | . . . 1 . . . Prototype ID Bank 1 | . . . 1 . . . Emergency Access Points 1 | . . . 1 . . . EX-Prototype ID Bank 1 | . . . . . 1 . Fabricator Hacks . | . . . . . . . Repair Station Hacks . | . . . . . . . Recycling Unit Hacks . | . . . . . . . Scanalyzer . | . . . . . . . Garrison Access Hacks . | . . . . . . . Unauthorized Hacks 4 | . 1 . 3 . . . Terminals 4 | . 1 . 3 . . . Botnet 4 | . 1 . 3 . . . Fabricators . | . . . . . . . Repair Stations . | . . . . . . . Recycling Units . | . . . . . . . Scanalyzers . | . . . . . . . Garrison Access . | . . . . . . . Data Cores Recovered . | . . . . . . . Used . | . . . . . . . Hacking Detections 4 | . 1 . 3 . . . Full Trace Events 1 | . 1 . . . . . Feedback Events . | . . . . . . . Feedback Blocked . | . . . . . . . Robot Schematics Acquired . | . . . . . . . Robots Built . | . . . . . . . Matter . | . . . . . . . Time . | . . . . . . . Total Robot Build Rating . | . . . . . . . Part Schematics Acquired . | . . . . . . . Parts Built . | . . . . . . . Matter . | . . . . . . . Time . | . . . . . . . Total Part Build Rating . | . . . . . . . Parts Repaired . | . . . . . . . Time . | . . . . . . . Parts Recycled . | . . . . . . . Recycled Matter . | . . . . . . . Retrieved Matter . | . . . . . . . Retrieved Components . | . . . . . . . Parts Scanalyzed . | . . . . . . . Part Schematics Acquired . | . . . . . . . Parts Damaged . | . . . . . . . Bothacking | -11 -10 -10 -9 -9 -9 -8 ------------ Run | Scr Mat Min Mat Min Exi Min Used RIF Installer . | . . . . . . . Robots Hacked . | . . . . . . . Non-combat . | . . . . . . . Combat . | . . . . . . . Robot Hacks Applied . | . . . . . . . Relay Couplers Released . | . . . . . . . Robots Rewired . | . . . . . . . Allies Hacked . | . . . . . . . Hacks Repelled . | . . . . . . . Allies | -11 -10 -10 -9 -9 -9 -8 -------- Run | Scr Mat Min Mat Min Exi Min Total Allies 2 | . . . . 2 . . Largest Group 2 | . . . . 2 1 . Highest-Rated Group 38 | . . . . 38 31 . Highest-Rated Ally 31 | . . . . 31 31 . Total Orders . | . . . . . . . Ally Attacks . | . . . . . . . Total Damage . | . . . . . . . Kills . | . . . . . . . Allies Corrupted . | . . . . . . . Allies Melted . | . . . . . . . Intel | -11 -10 -10 -9 -9 -9 -8 ------- Run | Scr Mat Min Mat Min Exi Min Robot Analysis Total 1 | . . . 1 . . . Derelict Logs Recovered 1 | . . 1 . . . . Drone Launches . | . . . . . . . Drone Recoveries . | . . . . . . . Exploration | -11 -10 -10 -9 -9 -9 -8 ------------- Run | Scr Mat Min Mat Min Exi Min Turns Passed 2570 | 77 440 374 481 225 601 372 Spaces Moved 1765 | 51 237 287 261 180 498 251 Core 12 | 12 . . . . . . Treads . | . . . . . . . Legs 1753 | 39 237 287 261 180 498 251 Wheels . | . . . . . . . Hover . | . . . . . . . Flight . | . . . . . . . Fastest Speed 50 | 50 120 120 120 120 120 120 Average Speed 120 | 123 120 120 120 120 120 122 Slowest Speed 150 | 150 120 120 120 120 120 150 Overloaded Moves . | . . . . . . . Propulsion Burnouts . | . . . . . . . Robots Hopped . | . . . . . . . Cave-ins Triggered . | . . . . . . . Exploration Rate (%) 45 | 4 47 49 24 46 93 52 Regions Visited 6 Branch Regions 4 Pre-discovered Areas 1 | . . . . . 1 . Known Exits Taken . | . . . . . . . Unknown Exits Taken 6 | 1 1 1 1 1 1 . Scrap Searched 2 | . . . . 2 . . Spaces Dug . | . . . . . . . Terrain Destroyed 92 | . . . 53 . . 39 Melee . | . . . . . . . Projectile 22 | . . . 15 . . 7 AOE 70 | . . . 38 . . 32 Terrain Rammed . | . . . . . . . Walls Destroyed . | . . . . . . . Machines Disabled . | . . . . . . . Actions | -11 -10 -10 -9 -9 -9 -8 --------- Run | Scr Mat Min Mat Min Exi Min Total 2033 | 58 306 309 380 188 501 291 Wait 76 | . 13 . 54 4 . 5 Move 1759 | 50 236 286 260 179 497 251 Hop . | . . . . . . . Pick Up 3 | . 1 2 . . . . Fast Attach 18 | 6 1 3 2 1 2 3 Attach 1 | . . . . 1 . . Detach 1 | . . . . . 1 . Swap 2 | . . . . . . 2 Drop 11 | . 1 5 1 2 1 1 Fire 120 | 2 43 4 46 1 . 24 Melee . | . . . . . . . Ram . | . . . . . . . Kick 1 | . . 1 . . . . Crush . | . . . . . . . Escape Stasis . | . . . . . . . Rewire 3 | . . 1 . . . 2 Trap 1 | . . 1 . . . . Miscellaneous 37 | . 11 6 17 . . 3 Route ------- -11/Scrapyard -10/Materials (discovered 2 exits: *Mat / [*Min]) -10/Mines -9/Materials (discovered 2 exits: [*Min] / Sto) -9/Mines (discovered 2 exits: [*Mat] / *Exi) -9/Exiles (discovered 2 exits: [*Min x2]) -8/Mines History --------- Turn | Location | Event 3 | -11/Scrapyard | Upgraded with Propulsion slot (x1) 3 | -11/Scrapyard | Upgraded with Weapon slot (x1) 17 | -11/Scrapyard | Discovered new exit (range 15) 78 | -11/Scrapyard | Entered Materials 275 | -10/Materials | Core integrity fell below 50% 304 | -10/Materials | Discovered new exit (range 16) 314 | -10/Materials | Build established: Mutant 447 | -10/Materials | Discovered new exit (range 15) 518 | -10/Materials | Entered Mines 547 | -10/Mines | Learned 2 Materials zone layouts 563 | -10/Mines | Found a hidden stash of uninstalled traps 628 | -10/Mines | Discovered new exit (range 10) 660 | -10/Mines | Assembled infested the area 665 | -10/Mines | Assisted by a Guerilla fighting off Assembled 727 | -10/Mines | Reached level 2 774 | -10/Mines | Joined a pair of Derelicts in attacking an 0b10 outpost 892 | -10/Mines | Entered Materials 893 | -9/Materials | Identified exit to Storage 894 | -9/Materials | Reached level 3 1097 | -9/Materials | Core integrity fell below 50% 1170 | -9/Materials | Reached level 4 1273 | -9/Materials | Reached level 5 1279 | -9/Materials | Discovered new exit (range 9) 1292 | -9/Materials | First assault squad dispatched 1373 | -9/Materials | Entered Mines 1400 | -9/Mines | Discovered new exit (range 15) 1512 | -9/Mines | Build established: Scavenger-Mutant 1589 | -9/Mines | Deemed a non-threat by the Exiles lab entrance 1591 | -9/Mines | Discovered new exit (range 5) 1598 | -9/Mines | Entered Exiles 1598 | -9/Exiles | Accompanied by 1 ally 1626 | -9/Exiles | Discovered new exit (range 17) 1628 | -9/Exiles | Led the pair of lost Derelicts to a safe place 1637 | -9/Exiles | Met 8R-AWN 1699 | -9/Exiles | Met EX-HEX 1754 | -9/Exiles | Met EX-DEC 1819 | -9/Exiles | Build established: Mutant 1824 | -9/Exiles | Visited The Gauntlet 1996 | -9/Exiles | Learned location of Zion (-6) 2012 | -9/Exiles | Met EX-BIN 2033 | -9/Exiles | Reached level 6 2033 | -9/Exiles | Aligned with FarCom system 2034 | -9/Exiles | Given EX-Vault access code 2062 | -9/Exiles | Opened EX-Vault 2076 | -9/Exiles | Found Latent Energy Streamer 2109 | -9/Exiles | Warned to stay clear of 0b10 Research branches 2115 | -9/Exiles | Exiles lab attacked by MAIN.C 2189 | -9/Exiles | Discovered new exit (range 10) 2199 | -9/Exiles | Left Exiles lab with Latent Energy Streamer 2199 | -9/Exiles | Entered Mines 2230 | -8/Mines | Upgraded with Power slot (x1) 2230 | -8/Mines | Upgraded with Utility slot (x1) 2326 | -8/Mines | Core integrity fell below 20% 2547 | -8/Mines | System corruption reached 10% 2572 | -8/Mines | Core destroyed Last Messages --------------- 02556_ HV Slug penetrates Wall. 02558_ System corrupted: Bore Cannon targeting data glitched. 02558_ HV Slug penetrates Wall. 02559_ Power failure, Deuterium Engine shutdown. 02560_ K-01 Serf collects debris. 02562_ HV Slug penetrates H-55 Commando. 02562_ H-55 Commando knocked back. 02562_ HV Slug penetrates H-55 Commando. 02563_ Flexi-carbon Leg permanently disabled. 02563_ Overheating: Short circuit. 02563_ K-01 Serf collects debris. 02564_ HV Slug penetrates H-55 Commando. 02566_ H-55 Commando knocked back. 02566_ HV Slug penetrates H-55 Commando. 02566_ HV Slug penetrates Wall. 02567_ K-01 Serf collects debris. 02568_ Power failure, Ion Engine shutdown. 02570_ Penetrated by Slug. 02571_ K-01 Serf collects debris. 02572_ Overheating: Core damaged (-200). Map ----- +----------------------------------------------------+ | ????????## #????? #????? | | ??????### #??????? #????? | | ????### ##??????? #????? | | ??### ##??????? #????? | | ?## ##??????# #????? | | ?# ####???# #????? | | ?# ##??# #????? | | ## ### #??# #????? | | # ##?###### #### #????? | | # #???????### ## #????? | | #?????????#### ##???? | | #????????????## ##??? | | # #?????????????## ##?? | | ## #?????????????# #?? | | ?### #????????????## #?? | | ???#### #????????????# ## #?? | | ??????# #????????????# #### #?? | | ??????# #????????????# #??#k ##?? | | ??????# #????????????# #### #??? | | ??????? #????????????# ## #??? | | ??????? ????????????## #??? | | ??????? ?????????????# ##?? | | ??????? ?????????????# #?? | | ???????# ????????????## #?? | | ????????###?????????????# #### ##?? | | ????????????????????????#@ #??####??? | | ????????????????????????# #????????? | | ????????????????????????# #????????? | | ????????????????????????# #????????? | | ????????????# ######## #????????? | | ????????????# % #????????? | | ???????????# #######;h ###??????? | | ??????????????????????## ##?????? | | ?????????????????????## ] !!#?????? | | ?????????????????????# ##?????? | | ?????????????????????# ##??????? | | ?????????????????????# ##???????? | | ?????????????????????## [; #????????? | | ??????????????????????# ;# #????????? | | ??????????????????????# ;# #????????? | | ?????????????????????? #????????? | | ?????????????????????# ;####????????? | | ?????????????????????# ;????????????? | | ?????????????????????# #????????????? | | ?????????????????????# ?????s???????? | | ?????????????????????# ?????????????? | | ?????????????????????#??????????????? | | ????????????????????????????????????? | | ????????????????????????????????????? | | ????????????????????????????????????? | +----------------------------------------------------+ Best States ------------- Heat Dissipation 35 Energy Generation 29 Energy Capacity 625 Matter Stores 300 Matter Capacity 300 Sight Range 20 Robot Scan Range 10 Terrain Scan Range 16 Terrain Scan Density 210 Armor Coverage 150 Resistance: KI 20 Evasion (%) 40 Targeting Accuracy 5 Item Schematics ----------------- None Robot Schematics ------------------ None Fabricated ------------ Nothing Alien Tech Used ----------------- None Achievements -------------- None Challenges ------------ None RPGLIKE | -11 -10 -10 -9 -9 -9 -8 --------- Run | Scr Mat Min Mat Min Exi Min Levels Raised 5 | . . 1 3 . 1 . XP Earned 11894 | 3000 955 900 4914 500 350 1275 XP Spent 9770 | 1250 . . 4920 . . 3600 Upgrades 35 | 3 . . 23 . . 9 Power Slot 1 | . . . . . . 1 Propulsion Slot 1 | 1 . . . . . . Utility Slot 1 | . . . . . . 1 Weapon Slot 1 | 1 . . . . . . Core Integrity 8 | . . . 8 . . . Energy Generation 2 | . . . . . . 2 Energy Storage 4 | . . . . . . 4 Inventory Capacity 1 | 1 . . . . . . Sight Range 4 | . . . 4 . . . Sensor Range 5 | . . . 5 . . . Terrain Scan Density 2 | . . . 2 . . . Ranged Accuracy 5 | . . . 4 . . 1 Protomatter Created 270 | . 86 . 164 . . 20 Integrity Restored 828 | . 258 144 366 . . 60 Core 828 | . 258 144 366 . . 60 Protomatter Decayed 37 | . . . 37 . . . Game ------ Seed MetafiberHypercooledExpander Manual? 0 Play Time 00:28:47 Cumulative 19.9 hours Start 2021.10.04 @ 00:57:11 End 2021.10.04 @ 01:30:50 Sessions 1 Manual Loads 0 Difficulty Rogue Special Mode Winter2019/RPGLIKE Game No. 29 Rogue 22 Adventurer 7 Explorer 0 Win Type - Total 0 Types 0/0/0/0/0/0/0/0/0 Lore% 24 Gallery% 24 Achievement% 20 Wizard Run 0 Options --------- ASCII 0 Keyboard 0 Movement Mouse Keybinds 0 Fullscreen 0 Font 18/Terminus Map View 84x54 Tactical HUD 1 Map Filters NONE Filters NONE Steam 1 RUN: 1a2ae561-a7b3-447f-845b-41a4612b2b8f